[Event "GER-chT Youth Countries 2018"]
[Site "Wurzburg"]
[Date "2018.10.07"]
[Round "7"]
[White "Boehm, Jana"]
[Black "Kageler, Anton Paul"]
[Result "1-0"]
[ECO "B76"]
[WhiteElo "2001"]
[BlackElo "1459"]
[Annotator "NA"]
[PlyCount "85"]
[EventDate "2018.10.03"]
[EventType "team-tourn"]
[EventCountry "GER"]
[SourceTitle "playchess.com"]
[Source "ChessBase"]
[SourceQuality "1"]
[TimeControl "40/5400+30:1800+30"]

1. e4 {[%emt 0:00:00]} c5 {[%emt 0:00:00]} 2. Nf3 {[%emt 0:00:00]} d6 {[%emt 0:00:00]} 3. d4 {[%emt 0:00:00]} cxd4 {[%emt 0:00:00]} 4. Nxd4 {[%emt 0:00:00]} Nf6 {[%emt 0:00:00]} 5. Nc3 {[%emt 0:00:00]} g6 {[%emt 0:00:14]} 6. Be3 {[%emt 0:00:31]} Bg7 {[%emt 0:00:23]} 7. f3 {[%emt 0:00:08]} O-O {[%emt 0:00:40]} 8. Qd2 {[%emt 0:00:05]} Nc6 {[%emt 0:01:02]} 9. O-O-O {[%emt 0:00:07]} Nxd4 {[%emt 0:04:45]} 10. Bxd4 {[%emt 0:00:47]} Be6 {[%emt 0:01:20]} 11. Kb1 {[%emt 0:04:05]} Qc7 {[%emt 0:01:07]} 12. h4 {[%emt 0:00:29]} Rfc8 {[%emt 0:01:22]} 13. h5 {[%emt 0:01:46]} Qa5 {[%emt 0:03:35]} 14. a3 {[%emt 0:01:50]} Nxh5 {[%emt 0:08:31] B76: Sicilian Dragon: Yugoslav Attack, 9 g4 and 9 0-0-0} (14... Rab8 15. hxg6 hxg6 16. Ne2 Qxd2 17. Rxd2 a6 18. Nf4 Bc4 19. Bxc4 Rxc4 20. Bxf6 Bxf6 21. Nd5 Bg5 22. f4 e6 23. fxg5 exd5 24. exd5 {0-1 (87) Fedorchuk,S (2633)-Dvirnyy,D (2444) Pavia 2009}) 15. Bxg7 {[%emt 0:01:09]} Kxg7 16. g4 {[%emt 0:05:03]} Nf6 {[%emt 0:04:39] [#]} (16... Rxc3 $1 $11 {remains equal.} 17. Qxc3+ Qxc3 18. bxc3 Nf4) 17. Qh6+ $1 {[%emt 0:03:54] LiveBook: 3 Games} Kg8 {[%emt 0:02:06] [#]} 18. Nd5 $1 {[%emt 0:05:58]} Bxd5 {[%emt 0:03:50]} 19. exd5 {[%emt 0:00:24]} Qc5 $2 {[%emt 0:04:13]} (19... Qd8 20. g5 Qf8) 20. Bd3 {[%emt 0:00:53]} Qd4 {[%emt 0:26:13]} 21. Bxg6 $2 $146 {[%emt 0:02:19]} (21. c3 Qb6 22. g5) ({Predecessor:} 21. g5 Nh5 22. Rxh5 {1-0 (60) Wise,G-Yamaguchi,M ICCF corr 1996}) 21... Qxd1+ {[%emt 0:01:59]} 22. Rxd1 {[%emt 0:00:07]} fxg6 {[%emt 0:00:07]} 23. Qe3 {[%emt 0:01:29]} Rc7 {[%emt 0:01:48]} 24. Re1 {[%emt 0:10:29]} Kg7 {[%emt 0:07:21]} 25. Qd4 {[%emt 0:01:34]} Kf7 {[%emt 0:01:35]} 26. Qf4 {[%emt 0:04:34]} Kg8 {[%emt 0:01:25]} 27. Qd4 {[%emt 0:02:17]} b5 {[%emt 0:04:30]} 28. c3 {[%emt 0:06:37]} Kf7 {[%emt 0:04:16]} 29. g5 {[%emt 0:01:30]} Nh5 {[%emt 0:02:12]} 30. Rh1 {[%emt 0:03:02]} Rc4 {[%emt 0:03:44]} 31. Qe3 {[%emt 0:01:20]} Rc5 {[%emt 0:04:27]} 32. Qe6+ $18 {[%emt 0:01:07]} Kf8 {[%emt 0:01:12]} 33. Qd7 {[%emt 0:01:11]} a6 {[%emt 0:03:10]} 34. Qb7 {[%emt 0:01:00]} Rcc8 {[%emt 0:00:30]} 35. Re1 {[%emt 0:01:17]} Re8 {[%emt 0:00:43]} 36. Rxe7 {[%emt 0:00:24]} Rxe7 {[%emt 0:01:21]} 37. Qxa8+ {[%emt 0:00:05]} Kf7 {[%emt 0:00:39]} 38. Qxa6 {[%emt 0:00:27]} Ng3 {[%emt 0:03:27]} 39. Qxd6 {[%emt 0:00:42]} Nf5 {[%emt 0:00:31]} 40. Qf6+ {[%emt 0:00:54]} Kg8 {[%emt 0:00:30]} 41. Qb6 {[%emt 0:30:31]} Re3 {[%emt 0:02:19]} 42. Qxb5 {[%emt 0:00:00]} Rxf3 {[%emt 0:00:17]} 43. d6 {[%emt 0:00:00]} 1-0

[Event "GER-chT Youth Countries 2018"]
[Site "Wurzburg"]
[Date "2018.10.07"]
[Round "7"]
[White "Wu, Luka"]
[Black "Richter, Nils"]
[Result "1/2-1/2"]
[ECO "A16"]
[WhiteElo "2001"]
[BlackElo "2035"]
[Annotator "NA"]
[PlyCount "88"]
[EventDate "2018.10.03"]
[EventType "team-tourn"]
[EventCountry "GER"]
[SourceTitle "playchess.com"]
[Source "ChessBase"]
[SourceQuality "1"]
[TimeControl "40/5400+30:1800+30"]

{[%evp 18,88,4,32767,32767,32767,32767,27,11,22,24,32767,32767,32767,32767,32767,28,18,21,22,33,0,0,0,0,0,0,0,32767,32767,-86,-112,-105,-133,-79,-101,-60,-59,-53,-76,32767,-76,32767,-47,-29,-28,-24,-31,-28,-41,32767,32767,32767,-65,-37,32767,32767,32767,-54,32767,-71,-64,32767,-57,-91,32767,-55,32767,-54,32767,32767,-76,-33]} 1. c4 {[%emt 0:00:00]} Nf6 {[%emt 0:00:00]} 2. Nc3 {[%emt 0:00:00]} g6 {[%emt 0:00:00]} 3. g3 {[%emt 0:00:15]} Bg7 {[%emt 0:00:00]} 4. Bg2 {[%emt 0:00:06]} O-O {[%emt 0:00:00]} 5. Nf3 {[%emt 0:00:05]} d6 {[%emt 0:00:04]} 6. O-O {[%emt 0:00:19]} Nc6 {[%emt 0:00:05]} 7. Rb1 {[%emt 0:01:00]} a5 {[%emt 0:01:15]} 8. a3 {[%emt 0:00:18]} e5 {[%emt 0:00:51]} 9. d3 {[%emt 0:00:05]} h6 {[%emt 0:00:14]} 10. b4 {[%emt 0:01:50]} axb4 {[%emt 0:00:17]} 11. axb4 {[%emt 0:00:07]} Be6 {[%emt 0:00:05]} 12. b5 {[%emt 0:04:19]} Ne7 {[%emt 0:00:05] LiveBook: 495 Games} 13. Bb2 {[%emt 0:04:09]} Qd7 {[%emt 0:02:45]} 14. Re1 {[%emt 0:03:06]} Bh3 {[%emt 0:00:56]} 15. Bh1 {[%emt 0:00:43]} Ng4 {[%emt 0:01:05]} 16. Ra1 {[%emt 0:03:42] A26: English Opening vs King's Indian with ...Nc6 and d3} f5 {[%emt 0:09:07]} 17. Qb3 {[%emt 0:06:27]} Kh7 {[%emt 0:03:51]} (17... Rab8 18. c5+ d5 19. e4 c6 20. exd5 cxd5 21. Nxe5 Nxe5 22. Nxd5 Nxd5 23. Rxe5 Bxe5 24. Qxd5+ Qxd5 25. Bxd5+ Kh7 26. Bxe5 Ra8 27. Rxa8 Rxa8 28. Bxb7 Ra5 29. Bc6 f4 30. gxf4 Ra2 31. b6 {1-0 (31) Eljanov,P (2742)-Nakamura,H (2741) Moscow 2010}) 18. Rxa8 {[%emt 0:00:30]} Rxa8 {[%emt 0:00:07]} 19. Ra1 $146 {[%emt 0:00:09]} ({Predecessor:} 19. Nd2 Rb8 20. Ra1 Qe6 21. Nd5 Nxd5 22. cxd5 Qf7 23. b6 f4 {1-0 (71) Mgeladze,T (2374)-Rahul,S (2253) Batumi 2018}) 19... Rxa1+ {[%emt 0:06:18]} 20. Bxa1 {[%emt 0:00:07] [#]} e4 $1 {[%emt 0:00:05]} 21. Ne1 {[%emt 0:09:56]} Bd4 {[%emt 0:11:47]} 22. e3 {[%emt 0:05:17]} Nxe3 {[%emt 0:01:45]} 23. Ne2 {[%emt 0:00:06]} Bxa1 {[%emt 0:00:45]} 24. fxe3 {[%emt 0:00:09]} Bg4 {[%emt 0:09:47]} 25. Kf2 {[%emt 0:02:47] [#]} Bxe2 {[%emt 0:08:17]} (25... d5 $142 $1 26. cxd5 Bxe2 27. Kxe2 Nxd5 28. dxe4 fxe4) 26. Kxe2 {[%emt 0:00:06]} exd3+ {[%emt 0:01:02]} 27. Nxd3 {[%emt 0:03:26]} c6 {[%emt 0:02:10]} 28. bxc6 {[%emt 0:01:35]} bxc6 {[%emt 0:03:19]} 29. Nb4 {[%emt 0:00:59]} c5 {[%emt 0:08:53]} 30. Nd5 {[%emt 0:01:31]} Nxd5 {[%emt 0:00:16]} 31. Bxd5 {[%emt 0:00:08]} Bg7 {[%emt 0:01:59]} 32. Kf3 {[%emt 0:05:59]} h5 {[%emt 0:01:56]} 33. Kg2 {[%emt 0:03:57]} Qe7 {[%emt 0:01:33]} 34. Qd3 {[%emt 0:01:58]} Qe5 {[%emt 0:00:37]} 35. Kf2 {[%emt 0:04:51]} Qa1 {[%emt 0:02:09]} 36. Qe2 {[%emt 0:02:25]} Bh6 {[%emt 0:04:09]} 37. h4 {[%emt 0:01:14]} Qc3 {[%emt 0:00:32]} 38. Kf3 {[%emt 0:00:31]} Bg7 {[%emt 0:00:42]} 39. Kf2 {[%emt 0:00:49]} Be5 {[%emt 0:01:17]} 40. Kg2 {[%emt 0:00:18]} Kh6 {[%emt 0:04:21]} 41. Qf2 {[%emt 0:30:47]} Qd3 {[%emt 0:30:32]} 42. Qf3 {[%emt 0:00:24]} Kh7 {[%emt 0:01:14]} 43. Qf2 {[%emt 0:00:54]} Qc3 {[%emt 0:02:31]} 44. Qe2 {[%emt 0:01:39]} Qa5 $15 {[%emt 0:03:04]} 1/2-1/2

[Event "GER-chT Youth Countries 2018"]
[Site "Wurzburg"]
[Date "2018.10.07"]
[Round "7"]
[White "Grund, Sebastian"]
[Black "Kopylov, Daniel"]
[Result "0-1"]
[ECO "A46"]
[WhiteElo "1992"]
[BlackElo "2192"]
[Annotator "NA"]
[PlyCount "50"]
[EventDate "2018.10.03"]
[EventType "team-tourn"]
[EventCountry "GER"]
[SourceTitle "playchess.com"]
[Source "ChessBase"]
[SourceQuality "1"]
[TimeControl "40/5400+30:1800+30"]

{[%evp 22,49,-39,-32,-30,-46,-47,-54,-37,-60,-33,-99,-79,-86,-75,32767,32767,-96,-91,32767,-118,32767,32767,32767,32767,32767,32767,-369,32767,-527]} 1. d4 {[%emt 0:00:00]} Nf6 {[%emt 0:00:00]} 2. Nf3 {[%emt 0:00:00]} d5 {[%emt 0:00:08]} 3. c4 {[%emt 0:00:00]} e6 {[%emt 0:02:20]} 4. g3 {[%emt 0:00:00]} Bb4+ {[%emt 0:00:09]} 5. Bd2 {[%emt 0:00:09]} Bd6 {[%emt 0:00:44]} 6. Bg2 {[%emt 0:00:19]} O-O {[%emt 0:00:21]} 7. Nc3 {[%emt 0:01:19]} c6 {[%emt 0:01:42]} 8. O-O {[%emt 0:01:39]} Nbd7 {[%emt 0:00:59]} 9. Qc2 {[%emt 0:00:35]} dxc4 {[%emt 0:00:54] E01: Catalan: Early deviations} 10. e4 {[%emt 0:04:18]} e5 {[%emt 0:02:28]} 11. Ne2 $146 {[%emt 0:13:30]} ({Predecessor:} 11. dxe5 Nxe5 12. Nxe5 Bxe5 13. f4 Bd4+ 14. Kh1 Ng4 15. e5 Nf2+ 16. Rxf2 Bxf2 17. Ne4 {0-1 (29) Gritsenko,A (2418)-Zvjaginsev,V (2642) Vladivostok 2014}) 11... Re8 {[%emt 0:10:21]} 12. Rfd1 {[%emt 0:03:11]} Qe7 {[%emt 0:03:06]} 13. Bc3 {[%emt 0:03:40]} exd4 {[%emt 0:14:16]} 14. Nexd4 {[%emt 0:02:33]} Ne5 {[%emt 0:09:16]} ({Don't blunder} 14... Nxe4 $2 15. Nf5 $18) 15. Nxe5 {[%emt 0:07:12]} Bxe5 {[%emt 0:00:38]} 16. Re1 {[%emt 0:02:06]} (16. Rac1 $11) 16... Qc5 {[%emt 0:14:09]} 17. Rad1 {[%emt 0:06:38]} Bg4 {[%emt 0:02:04]} 18. f3 {[%emt 0:02:05]} Rad8 {[%emt 0:01:26]} 19. Qf2 {[%emt 0:01:37]} Bc8 {[%emt 0:01:18]} 20. h3 {[%emt 0:10:49]} Bc7 {[%emt 0:06:26]} 21. Nc2 {[%emt 0:04:20]} Qxf2+ {[%emt 0:10:34]} 22. Kxf2 {[%emt 0:00:13]} b5 {[%emt 0:03:50]} 23. Nb4 {[%emt 0:05:47]} Bb7 {[%emt 0:00:35]} 24. e5 $2 {[%emt 0:01:02]} (24. Rxd8 $17 {was worth a try.} Rxd8 25. Nc2) 24... Bb6+ {[%emt 0:01:03]} 25. Kf1 $19 {[%emt 0:00:24]} Nh5 {[%emt 0:00:19]} 0-1

[Event "GER-chT Youth Countries 2018"]
[Site "Wurzburg"]
[Date "2018.10.07"]
[Round "7"]
[White "Laux, Dominik"]
[Black "Basovskiy, Jana"]
[Result "1-0"]
[ECO "D00"]
[WhiteElo "1987"]
[BlackElo "1772"]
[Annotator "NA"]
[PlyCount "113"]
[EventDate "2018.10.03"]
[EventType "team-tourn"]
[EventCountry "GER"]
[SourceTitle "playchess.com"]
[Source "ChessBase"]
[SourceQuality "1"]
[TimeControl "40/5400+30:1800+30"]

{[%evp 16,95,11,32767,5,0,19,-6,0,-22,-25,-29,-47,-223,-194,-288,-250,-262,32767,-274,-154,-142,32767,-200,-176,32767,-152,32767,32767,32767,32767,32767,32767,32767,32767,-160,32767,-176,32767,32767,32767,-263,-223,-255,-215,32767,32767,32767,32767,32767,-158,-197,32767,35,32767,32767,66,40,52,0,632,32767,629,328,32767,32767,318,184,273,32767,171,169,171,174,32767,32767,166,30,743,808,847,713]} 1. d4 {[%emt 0:00:00]} d5 {[%emt 0:00:00]} 2. Bf4 {[%emt 0:00:00]} Nf6 {[%emt 0:00:00]} 3. e3 {[%emt 0:00:00]} e6 {[%emt 0:00:00]} 4. Nf3 {[%emt 0:00:15]} c5 {[%emt 0:00:00]} 5. c3 {[%emt 0:00:17]} Nc6 {[%emt 0:00:11]} 6. Nbd2 {[%emt 0:00:55]} Bd6 {[%emt 0:00:11]} 7. dxc5 {[%emt 0:01:38]} Bxc5 {[%emt 0:04:10]} 8. Bd3 {[%emt 0:00:44] D02: 1 d4 d5 2 Nf3 sidelines, including 2...Nf6 3 g3 and 2...Nf6 3 Bf4} O-O {[%emt 0:10:35]} (8... h6 9. Qe2 Nh5 10. Bg3 Nxg3 11. hxg3 Bd7 12. e4 dxe4 13. Nxe4 Be7 14. g4 Qc7 15. g5 O-O-O 16. gxh6 gxh6 {½-½ (101) Mamedyarov,S (2809)-Nakamura,H (2787) Moscow 2018}) 9. O-O {[%emt 0:02:25]} Re8 {[%emt 0:04:13]} 10. e4 {[%emt 0:01:47]} e5 {[%emt 0:10:48] LiveBook: 3 Partien} 11. Bg3 {[%emt 0:06:27]} Bg4 {[%emt 0:08:57]} 12. Qc2 {[%emt 0:06:28]} Rc8 {[%emt 0:08:21]} 13. exd5 {[%emt 0:10:42]} Nb4 $1 {[%emt 0:12:37]} 14. Bxh7+ $2 $146 {[%emt 0:13:13]} ({Predecessor:} 14. cxb4 $15 Bxf2+ 15. Rxf2 (15. Bxf2 Rxc2 16. Bxc2 e4 $15) 15... Rxc2 16. Bxc2 e4 {1-0 (35) Senff,M (2464)-Rothuis,V (2354) Dieren 2006}) 14... Nxh7 {[%emt 0:01:50]} 15. Qa4 {[%emt 0:00:19]} Bd7 {[%emt 0:04:14]} ({Weaker is} 15... Qxd5 16. cxb4 Bb6 17. Qb3 $11) 16. Qb3 {[%emt 0:01:52]} Nd3 {[%emt 0:06:46]} 17. c4 {[%emt 0:11:11]} Nf4 {[%emt 0:00:57]} (17... e4 $19 18. Nxe4 Rxe4 19. Qxd3 {[#]} Rxc4 $1 {[%mdl 512]}) 18. Rfe1 {[%emt 0:04:19]} f6 {[%emt 0:09:46]} 19. a3 {[%emt 0:07:42]} (19. Ne4 $17) 19... Qb6 {[%emt 0:02:41]} 20. Qc2 {[%emt 0:01:26]} a5 {[%emt 0:01:22]} 21. Rab1 {[%emt 0:03:37]} Qc7 {[%emt 0:06:41]} 22. b4 {[%emt 0:04:28]} axb4 {[%emt 0:00:01]} 23. axb4 {[%emt 0:00:10]} Bf8 {[%emt 0:00:02]} 24. Bxf4 {[%emt 0:06:05]} exf4 {[%emt 0:00:07]} 25. Rec1 $2 {[%emt 0:03:20]} ({White should try} 25. c5 $11) 25... b6 {[%emt 0:02:46]} 26. Qb3 {[%emt 0:01:10]} Bf5 {[%emt 0:02:23]} 27. Rb2 {[%emt 0:00:52]} Qf7 {[%emt 0:01:02]} 28. Nd4 {[%emt 0:00:57]} Bd7 {[%emt 0:00:32]} 29. Rbc2 {[%emt 0:00:59]} Ng5 {[%emt 0:01:00]} 30. N4f3 {[%emt 0:04:35]} Nxf3+ {[%emt 0:00:44]} 31. Nxf3 {[%emt 0:00:07]} Bg4 {[%emt 0:00:17]} 32. Nd4 {[%emt 0:00:45]} Qe7 {[%emt 0:00:49]} (32... Qh5 $19 33. Rc3 Qe5) 33. h3 {[%emt 0:00:42]} Bd7 {[%emt 0:00:50]} 34. c5 $1 {[%emt 0:03:08]} bxc5 {[%emt 0:00:02]} 35. bxc5 {[%emt 0:00:06]} Red8 {[%emt 0:01:04]} 36. c6 {[%emt 0:03:19]} Be8 {[%emt 0:00:08]} 37. c7 {[%emt 0:01:39]} Rd7 $2 {[%emt 0:00:57]} (37... Rd6 $11) 38. d6+ {[%emt 0:00:35]} Qf7 {[%emt 0:01:11]} 39. Qb8 {[%emt 0:00:14]} (39. Qb7 $142) 39... Rxb8 {[%emt 0:00:41]} 40. cxb8=Q {[%emt 0:00:09]} Bxd6 {[%emt 0:00:00]} 41. Qb3 {[%emt 0:31:22]} (41. Qa8 $142 Ra7 42. Qd8) 41... Rb7 (41... Qxb3 $142 42. Nxb3 Kh7) 42. Qxf7+ {[%emt 0:00:00]} Bxf7 {[%emt 0:07:02]} 43. Rc8+ {[%emt 0:00:00]} Kh7 {[%emt 0:00:38]} 44. Rd1 {[%emt 0:00:00]} Rb2 {[%emt 0:04:33]} 45. Nf5 {[%emt 0:00:00]} Be5 {[%emt 0:06:41]} 46. Rd7 {[%emt 0:00:00]} ({White should play} 46. Rf8 $16 Rb7 47. Rfd8) 46... Kg6 $2 {[%emt 0:01:01]} (46... Rb1+ $11 47. Kh2 f3+ 48. g3 Rb2) 47. Nh4+ {[%emt 0:00:00]} Kg5 {[%emt 0:00:38]} 48. Rxf7 $18 {[%emt 0:00:00]} Kxh4 {[%emt 0:01:09]} 49. Rxg7 {[%emt 0:00:00]} Rb8 {[%emt 0:00:28]} 50. Rxb8 {[%emt 0:00:00]} Bxb8 51. Kf1 {[%emt 0:00:00]} Be5 {[%emt 0:01:00]} 52. Ke2 {[%emt 0:00:00]} Bd6 {[%emt 0:01:03]} 53. Kf3 {[%emt 0:00:00]} Be5 {[%emt 0:00:15]} 54. Ke4 {[%emt 0:01:32]} Kh5 {[%emt 0:00:19]} 55. Kf5 {[%emt 0:00:12]} Kh6 {[%emt 0:00:29]} 56. Rg6+ {[%emt 0:00:05]} Kh7 {[%emt 0:00:12]} 57. Rxf6 {[%emt 0:00:07]} 1-0